fUSD/lending_fUSD_20250618
["ID","MTS","AMOUNT","RATE_DAILY","PERIOD"]
[366440599,1750257041902,-1123.05,0.00016438,2]
[366440600,1750257041911,-490.0,0.00016438,2]
[366440601,1750257041920,-490.0,0.00016438,2]
[366440602,1750257041931,-585.81,0.00016438,2]
[366440603,1750257041942,-512.44,0.00016438,2]
[366440604,1750257041954,-529.92,0.00016438,2]
[366440605,1750257041965,-619.01,0.00016438,2]
[366440606,1750257041976,-490.0,0.00016438,2]
[366440607,1750257041990,-490.0,0.00016438,2]
[366440608,1750257042001,-511.25,0.00016438,2]
[366440609,1750257042012,-490.0,0.00016438,2]
[366440610,1750257042022,-490.0,0.00016438,2]
[366440611,1750257042033,-690.3,0.00016438,2]
[366440612,1750257042043,-1117.61,0.00016438,2]
[366440613,1750257042054,-1128.49,0.00016438,2]
[366440614,1750257042065,-364.99890038,0.00016438,2]
[366440615,1750257042075,-490.0,0.00016438,2]
[366440616,1750257042084,-490.0,0.00016438,2]
[366440617,1750257042094,-490.0,0.00016438,2]
[366440618,1750257042104,-490.0,0.00016438,2]
[366440619,1750257042115,-1499.37,0.00016438,2]
[366440620,1750257042125,-705.99,0.00016438,2]
[366440621,1750257042135,-1251.05,0.00016438,2]
[366440622,1750257042145,-770.06,0.00016438,2]
[366440623,1750257042155,-490.0,0.00016438,2]
[366440624,1750257042165,-468.9037178,0.00016438,2]
[366440625,1750257042174,-1149.1,0.00016438,2]
[366440626,1750257042184,-607.32,0.00016438,2]
[366440627,1750257042193,-494.07881856,0.00016438,2]
[366440628,1750257042203,-697.95,0.00016438,2]
[366440629,1750257042212,-490.0,0.00016438,2]
[366440630,1750257042222,-490.0,0.00016438,2]
[366440631,1750257042231,-1246.97,0.00016438,2]
[366440632,1750257042244,-951.45,0.00016438,2]
[366440633,1750257042253,-490.0,0.00016438,2]
[366440634,1750257042263,-704.38,0.00016438,2]
[366440635,1750257042273,-490.0,0.00016438,2]
[366440636,1750257042282,-718.12,0.00016438,2]
[366440637,1750257042292,-783.15,0.00016438,2]
[366440639,1750257042302,-490.0,0.00016438,2]
[366440640,1750257042311,-897.47,0.00016438,2]
[366440641,1750257042321,-490.0,0.00016438,2]
[366440642,1750257042331,-490.0,0.00016438,2]
[366440643,1750257042340,-490.0,0.00016438,2]
[366440644,1750257042350,-801.94,0.00016438,2]
[366440645,1750257042360,-655.08,0.00016438,2]
[366440646,1750257042370,-1547.99,0.00016438,2]
[366440647,1750257042379,-490.0,0.00016438,2]
[366440649,1750257042389,-961.74,0.00016438,2]
[366440651,1750257042400,-492.13,0.00016438,2]
[366440652,1750257042413,-490.0,0.00016438,2]
[366440654,1750257042423,-1810.08,0.00016438,2]
[366440656,1750257042433,-609.2,0.00016438,2]
[366440658,1750257042443,-733.94,0.00016438,2]
[366440660,1750257042454,-683.17,0.00016438,2]
[366440662,1750257042464,-602.08,0.00016438,2]
[366440664,1750257042474,-750.67,0.00016438,2]
[366440666,1750257042484,-386.06768237,0.00016438,2]
[366440668,1750257042495,-796.54,0.00016438,2]
[366440671,1750257042505,-1113.1,0.00016438,2]
[366440673,1750257042515,-490.0,0.00016438,2]
[366440675,1750257042525,-490.0,0.00016438,2]
[366440676,1750257042534,-1298.39,0.00016438,2]
[366440677,1750257042544,-490.0,0.00016438,2]
[366440678,1750257042554,-2524.38,0.00016438,2]
[366440679,1750257042564,-624.51,0.00016438,2]
[366440680,1750257042574,-490.0,0.00016438,2]
[366440681,1750257042584,-843.28,0.00016438,2]
[366440683,1750257042594,-998.1,0.00016438,2]
[366440686,1750257042604,-1474.63,0.00016438,2]
[366440688,1750257042614,-741.38,0.00016438,2]
[366440690,1750257042624,-490.0,0.00016438,2]
[366440692,1750257042633,-490.0,0.00016438,2]
[366440693,1750257042643,-490.0,0.00016438,2]
[366440694,1750257042652,-355.11619798,0.00016438,2]
[366440695,1750257042662,-490.0,0.00016438,2]
[366440696,1750257042672,-490.0,0.00016438,2]
[366440697,1750257042681,-793.14,0.00016438,2]
[366440698,1750257042691,-490.0,0.00016438,2]
[366440699,1750257042701,-614.44,0.00016438,2]
[366440700,1750257042711,-490.0,0.00016438,2]
[366440701,1750257042720,-490.0,0.00016438,2]
[366440702,1750257042730,-646.95,0.00016438,2]
[366440703,1750257042741,-2116.32,0.00016438,2]
[366440704,1750257042751,-600.42,0.00016438,2]
[366440705,1750257042761,-562.77,0.00016438,2]
[366440706,1750257042770,-490.0,0.00016438,2]
[366440707,1750257042780,-490.0,0.00016438,2]
[366440708,1750257042790,-490.0,0.00016438,2]
[366440709,1750257042800,-490.0,0.00016438,2]
[366440711,1750257042810,-1069.11,0.00016438,2]
[366440712,1750257042820,-513.47,0.00016438,2]
[366440713,1750257042830,-490.0,0.00016438,2]
[366440714,1750257042840,-567.01,0.00016438,2]
[366440715,1750257042850,-1198.12,0.00016438,2]
[366440716,1750257042859,-490.0,0.00016438,2]
[366440717,1750257042869,-632.91,0.00016438,2]
[366440718,1750257042878,-490.0,0.00016438,2]
[366440719,1750257042888,-1129.76,0.00016438,2]
[366440720,1750257042898,-1414.45,0.00016438,2]
[366440721,1750257042908,-490.0,0.00016438,2]
[366440722,1750257042918,-490.0,0.00016438,2]
[366440723,1750257042927,-490.0,0.00016438,2]
[366440724,1750257042938,-490.0,0.00016438,2]
[366440725,1750257042947,-492.20390019,0.00016438,2]
[366440726,1750257042957,-490.0,0.00016438,2]
[366440727,1750257042967,-8478.731464,0.00016438,2]
[366440728,1750257042976,-8478.731464,0.00016438,2]
[366440729,1750257042987,-8478.731464,0.00016438,2]
[366440731,1750257042997,-8478.731464,0.00016438,2]
[366440733,1750257043005,-300.0,0.0001647,2]
[366440735,1750257043015,-500.0,0.00016473,2]
[366440737,1750257043025,-500.0,0.00016473,2]
[366440739,1750257043035,-1070.0,0.000165,4]
[366440741,1750257043045,-700.0,0.000165,6]
[366440743,1750257043055,-161.56208367,0.00016502,2]
[366440745,1750257043064,-500.0,0.00016502,2]
[366440747,1750257043074,-500.0,0.00016502,2]
[366440749,1750257043084,-500.0,0.00016502,2]
[366440751,1750257043094,-500.0,0.00016502,2]
[366440753,1750257043104,-500.0,0.00016502,2]
[366440755,1750257043114,-500.0,0.00016502,2]
[366440757,1750257043124,-519.0,0.00016502,2]
[366440759,1750257043134,-858.36893487,0.00016511,2]
[366440761,1750257043143,-752.74641027,0.00016555,2]
[366440763,1750257043153,-489.16277,0.000166,2]
[366440765,1750257043163,-860.17,0.000166,2]
[366440767,1750257043173,-349.61293289,0.000166,2]
[366440769,1750257043182,-1044.5754,0.000166,3]
[366440771,1750257043191,-1500.0,0.000166,6]
[366440773,1750257043201,-1315.98,0.00016601,2]
[366440775,1750257043213,-1315.98,0.00016601,2]
[366440777,1750257043222,-1315.98,0.00016601,2]
[366440779,1750257043233,-1315.98,0.00016601,2]
[366440781,1750257043246,-500.0,0.00016601,2]
[366440782,1750257043255,-500.0,0.00016601,2]
[366440783,1750257043265,-500.0,0.00016601,2]
[366440784,1750257043275,-500.0,0.00016601,2]
[366440785,1750257043284,-182.32,0.00016601,2]
[366440786,1750257043294,-300.0,0.00016601,2]
[366440787,1750257043303,-300.0,0.00016601,2]
[366440788,1750257043313,-490.0,0.00016602,2]
[366440789,1750257043323,-686.14,0.00016602,2]
[366440790,1750257043333,-551.49,0.00016602,2]
[366440791,1750257043342,-777.25,0.00016602,2]
[366440792,1750257043352,-490.0,0.00016602,2]
[366440793,1750257043362,-518.54,0.00016602,2]
[366440794,1750257043371,-560.09,0.00016602,2]
[366440795,1750257043382,-490.0,0.00016602,2]
[366440796,1750257043391,-285.76,0.00016602,2]
[366440797,1750257043401,-490.0,0.00016602,2]
[366440798,1750257043412,-490.0,0.00016602,2]
[366440799,1750257043425,-490.0,0.00016602,2]
[366440800,1750257043435,-300.0,0.00016602,2]
[366440801,1750257043445,-490.0,0.00016602,2]
[366440802,1750257043454,-490.0,0.00016602,2]
[366440803,1750257043465,-490.0,0.00016602,2]
[366440804,1750257043475,-490.0,0.00016602,2]
[366440805,1750257043486,-781.86,0.00016602,2]
[366440806,1750257043497,-492.72,0.00016602,2]
[366440807,1750257043507,-490.0,0.00016602,2]
[366440808,1750257043518,-490.0,0.00016602,2]
[366440809,1750257043527,-519.56,0.00016602,2]
[366440810,1750257043538,-523.43,0.00016602,2]
[366440811,1750257043548,-490.0,0.00016602,2]
[366440812,1750257043557,-990.9,0.00016602,2]
[366440813,1750257043567,-490.0,0.00016602,2]
[366440814,1750257043577,-490.0,0.00016602,2]
[366440815,1750257043587,-490.0,0.00016602,2]
[366440816,1750257043596,-538.02,0.00016602,2]
[366440817,1750257043606,-763.15,0.00016602,2]
[366440818,1750257043616,-1338.65,0.00016602,2]
[366440819,1750257043625,-490.0,0.00016602,2]
[366440820,1750257043635,-613.29,0.00016602,2]
[366440821,1750257043645,-490.0,0.00016602,2]
[366440822,1750257043654,-743.18,0.00016602,2]
[366440823,1750257043664,-490.0,0.00016602,2]
[366440824,1750257043673,-490.0,0.00016602,2]
[366440825,1750257043683,-490.0,0.00016602,2]
[366440826,1750257043692,-706.15,0.00016602,2]
[366440827,1750257043702,-490.0,0.00016602,2]
[366440828,1750257043712,-490.0,0.00016602,2]
[366440829,1750257043722,-376.4273538,0.00016602,2]
[366440830,1750257043731,-490.0,0.00016602,2]
[366440831,1750257043743,-490.0,0.00016602,2]
[366440832,1750257043753,-551.76,0.00016602,2]
[366440833,1750257043763,-490.0,0.00016602,2]
[366440834,1750257043773,-490.0,0.00016602,2]
[366440835,1750257043783,-546.08,0.00016602,2]
[366440836,1750257043793,-490.0,0.00016602,2]
[366440837,1750257043802,-658.72,0.00016602,2]
[366440838,1750257043812,-490.0,0.00016602,2]
[366440839,1750257043822,-490.0,0.00016602,2]
[366440840,1750257043832,-490.0,0.00016602,2]
[366440841,1750257043842,-490.0,0.00016602,2]
[366440842,1750257043852,-495.85004879,0.00016602,2]
[366440843,1750257043863,-534.7,0.00016602,2]
[366440844,1750257043873,-533.74,0.00016602,2]
[366440845,1750257043883,-490.0,0.00016602,2]
[366440846,1750257043894,-264.61577739,0.00016602,2]
[366440847,1750257044149,-490.0,0.00016602,2]
[366440848,1750257044161,-500.0,0.00016602,2]
[366440849,1750257044171,-490.0,0.00016602,2]
[366440850,1750257044181,-490.0,0.00016602,2]
[366440851,1750257044191,-490.0,0.00016602,2]
[366440852,1750257044201,-490.0,0.00016602,2]
[366440853,1750257044211,-490.0,0.00016602,2]
[366440854,1750257044221,-490.0,0.00016602,2]
[366440855,1750257044231,-871.98,0.00016602,2]
[366440856,1750257044243,-490.0,0.00016602,2]
[366440857,1750257044253,-490.0,0.00016602,2]
[366440858,1750257044263,-490.0,0.00016602,2]
[366440859,1750257044273,-584.75,0.00016602,2]
[366440860,1750257044283,-589.43,0.00016602,2]
[366440861,1750257044293,-490.0,0.00016602,2]
[366440862,1750257044303,-490.0,0.00016602,2]
[366440863,1750257044314,-254.08113285,0.00016602,2]
[366440864,1750257044324,-490.0,0.00016602,2]
[366440865,1750257044334,-908.44,0.00016602,2]
[366440866,1750257044344,-490.13,0.00016602,2]
[366440867,1750257044354,-490.0,0.00016602,2]
[366440868,1750257044364,-490.0,0.00016602,2]
[366440869,1750257044374,-490.0,0.00016602,2]
[366440870,1750257044384,-490.0,0.00016602,2]
[366440871,1750257044394,-490.0,0.00016602,2]
[366440872,1750257044405,-490.0,0.00016602,2]
[366440873,1750257044415,-490.0,0.00016602,2]
[366440874,1750257044426,-490.0,0.00016602,2]
[366440875,1750257044435,-150.0,0.00016602,2]
[366440876,1750257044446,-150.0,0.00016602,2]
[366440877,1750257044456,-490.0,0.00016602,2]
[366440878,1750257044466,-490.0,0.00016602,2]
[366440879,1750257044476,-150.0,0.00016602,2]
[366440880,1750257044486,-150.0,0.00016602,2]
[366440881,1750257044499,-490.0,0.00016602,2]
[366440882,1750257044510,-203.49245287,0.00016602,2]
[366440883,1750257044520,-150.0,0.00016602,2]
[366440884,1750257044531,-150.0,0.00016602,2]
[366440885,1750257044542,-490.0,0.00016602,2]
[366440886,1750257044552,-150.70269583,0.00016602,2]
[366440887,1750257044562,-490.0,0.00016602,2]
[366440888,1750257044572,-490.0,0.00016602,2]
[366440889,1750257044583,-150.0,0.00016602,2]
[366440890,1750257044592,-150.0,0.00016602,2]
[366440891,1750257044602,-490.0,0.00016602,2]
[366440892,1750257044612,-670.85,0.00016602,2]
[366440893,1750257044621,-490.0,0.00016602,2]
[366440894,1750257044632,-490.0,0.00016602,2]
[366440895,1750257044642,-150.0,0.00016602,2]
[366440896,1750257044651,-594.25,0.00016602,2]
[366440897,1750257044661,-490.0,0.00016602,2]
[366440898,1750257044671,-451.2024598,0.00016602,2]
[366440899,1750257044681,-490.0,0.00016602,2]
[366440900,1750257044691,-490.0,0.00016602,2]
[366440901,1750257044701,-674.18,0.00016602,2]
[366440902,1750257044711,-490.0,0.00016602,2]
[366440903,1750257044721,-291.35944896,0.00016602,2]
[366440904,1750257044731,-562.72,0.00016602,2]
[366440905,1750257044744,-449.44109524,0.00016602,2]
[366440906,1750257044754,-581.59,0.00016602,2]
[366440907,1750257044764,-571.73,0.00016602,2]
[366440908,1750257044773,-490.0,0.00016602,2]
[366440909,1750257044783,-490.0,0.00016602,2]
[366440910,1750257044793,-490.0,0.00016602,2]
[366440911,1750257044803,-490.0,0.00016602,2]
[366440912,1750257044813,-512.65,0.00016602,2]
[366440913,1750257044823,-578.22,0.00016602,2]
[366440914,1750257044832,-490.0,0.00016602,2]
[366440915,1750257044842,-490.0,0.00016602,2]
[366440916,1750257044852,-502.22,0.00016602,2]
[366440917,1750257044862,-535.71,0.00016602,2]
[366440918,1750257044872,-490.0,0.00016602,2]
[366440919,1750257044882,-528.62,0.00016602,2]
[366440920,1750257044892,-490.0,0.00016602,2]
[366440921,1750257044902,-761.74,0.00016602,2]
[366440922,1750257044912,-490.0,0.00016602,2]
[366440923,1750257044922,-549.14,0.00016602,2]
[366440924,1750257044932,-506.86804404,0.00016602,2]
[366440925,1750257044942,-546.35792707,0.00016602,2]
[366440926,1750257044952,-492.69689962,0.00016602,2]
[366440927,1750257044961,-1157.46,0.00016602,2]
[366440928,1750257044971,-711.34,0.00016602,2]
[366440929,1750257044980,-490.0,0.00016602,2]
[366440930,1750257044993,-490.0,0.00016602,2]
[366440931,1750257045003,-1138.45,0.00016602,2]
[366440932,1750257045013,-574.18,0.00016602,2]
[366440933,1750257045023,-490.0,0.00016602,2]
[366440934,1750257045033,-490.0,0.00016602,2]
[366440935,1750257045043,-490.0,0.00016602,2]
[366440936,1750257045055,-490.0,0.00016602,2]
[366440937,1750257045064,-404.31317432,0.00016602,2]
[366440938,1750257045075,-697.93,0.00016602,2]
[366440939,1750257045085,-1306.71,0.00016602,2]
[366440940,1750257045095,-490.0,0.00016602,2]
[366440941,1750257045104,-513.85,0.00016602,2]
[366440942,1750257045114,-150.0,0.00016602,2]
[366440943,1750257045125,-490.0,0.00016602,2]
[366440944,1750257045135,-1490.15,0.00016602,2]
[366440945,1750257045145,-1470.31,0.00016602,2]
[366440946,1750257045155,-591.97733761,0.00016602,2]
[366440947,1750257045165,-650.64,0.00016602,2]
[366440948,1750257045175,-714.69,0.00016602,2]
[366440949,1750257045185,-1055.17,0.00016602,2]
[366440950,1750257045195,-490.0,0.00016602,2]
[366440951,1750257045204,-590.28516341,0.00016602,2]
[366440952,1750257045214,-938.74,0.00016602,2]
[366440953,1750257045224,-752.12,0.00016602,2]
[366440954,1750257045234,-746.58,0.00016602,2]
[366440955,1750257045246,-615.79,0.00016602,2]
[366440956,1750257045256,-1184.09,0.00016602,2]
[366440957,1750257045266,-490.0,0.00016602,2]
[366440958,1750257045276,-490.0,0.00016602,2]
[366440959,1750257045286,-595.15,0.00016602,2]
[366440960,1750257045295,-546.89,0.00016602,2]
[366440961,1750257045306,-490.0,0.00016602,2]
[366440962,1750257045316,-892.68,0.00016602,2]
[366440963,1750257045326,-662.92,0.00016602,2]
[366440964,1750257045336,-490.0,0.00016602,2]
[366440965,1750257045346,-784.12,0.00016602,2]
[366440966,1750257045356,-1398.48,0.00016602,2]
[366440968,1750257045366,-1387.74,0.00016602,2]
[366440969,1750257045376,-1002.15,0.00016602,2]
[366440970,1750257045386,-562.5,0.00016602,2]
[366440971,1750257045395,-490.0,0.00016602,2]
[366440972,1750257045411,-490.0,0.00016602,2]
[366440973,1750257045421,-1114.11,0.00016602,2]
[366440974,1750257045431,-490.0,0.00016602,2]
[366440975,1750257045441,-1158.83,0.00016602,2]
[366440976,1750257045452,-314.26588324,0.00016602,2]
[366440977,1750257045462,-490.0,0.00016602,2]
[366440978,1750257045472,-1123.05,0.00016602,2]
[366440979,1750257045483,-490.0,0.00016602,2]
[366440980,1750257045494,-490.0,0.00016602,2]
[366440981,1750257045504,-585.81,0.00016602,2]
[366440982,1750257045514,-512.44,0.00016602,2]
[366440983,1750257045524,-529.92,0.00016602,2]
[366440985,1750257045534,-619.01,0.00016602,2]
[366440986,1750257045544,-490.0,0.00016602,2]
[366440987,1750257045554,-490.0,0.00016602,2]
[366440988,1750257045564,-511.25,0.00016602,2]
[366440989,1750257045574,-490.0,0.00016602,2]
[366440990,1750257045584,-490.0,0.00016602,2]
[366440991,1750257045594,-690.3,0.00016602,2]
[366440993,1750257045604,-1117.61,0.00016602,2]
[366440995,1750257045614,-1128.49,0.00016602,2]
[366440996,1750257045623,-490.0,0.00016602,2]
[366440997,1750257045633,-490.0,0.00016602,2]
[366440998,1750257045642,-490.0,0.00016602,2]
[366440999,1750257045652,-490.0,0.00016602,2]
[366441000,1750257045662,-1499.37,0.00016602,2]
[366441001,1750257045673,-705.99,0.00016602,2]
[366441002,1750257045682,-1251.05,0.00016602,2]
[366441003,1750257045692,-770.06,0.00016602,2]
[366441004,1750257045702,-490.0,0.00016602,2]
[366441005,1750257045712,-1149.1,0.00016602,2]
[366441006,1750257045721,-607.32,0.00016602,2]
[366441007,1750257045731,-697.95,0.00016602,2]
[366441008,1750257045742,-417.46593169,0.00016602,2]
[366441009,1750257045752,-490.0,0.00016602,2]
[366441010,1750257045762,-1246.97,0.00016602,2]
[366441011,1750257045772,-951.45,0.00016602,2]
[366441012,1750257045781,-490.0,0.00016602,2]
[366441013,1750257045791,-704.38,0.00016602,2]
[366441014,1750257045802,-490.0,0.00016602,2]
[366441015,1750257045812,-718.12,0.00016602,2]
[366441016,1750257045822,-783.15,0.00016602,2]
[366441017,1750257045832,-207.25958866,0.00016602,2]
[366441018,1750257045842,-897.47,0.00016602,2]
[366441019,1750257045852,-490.0,0.00016602,2]
[366441020,1750257045862,-490.0,0.00016602,2]
[366441021,1750257045872,-801.94,0.00016602,2]
[366441022,1750257045882,-655.08,0.00016602,2]
[366441023,1750257045892,-1547.99,0.00016602,2]
[366441024,1750257045902,-961.74,0.00016602,2]
[366441025,1750257045912,-492.13,0.00016602,2]
[366441026,1750257045923,-490.0,0.00016602,2]
[366441027,1750257045932,-1810.08,0.00016602,2]
[366441028,1750257045942,-609.2,0.00016602,2]
[366441029,1750257045953,-733.94,0.00016602,2]
[366441031,1750257045962,-683.17,0.00016602,2]
[366441033,1750257045972,-602.08,0.00016602,2]
[366441035,1750257045981,-750.67,0.00016602,2]
[366441037,1750257045991,-796.54,0.00016602,2]
[366441039,1750257046000,-1113.1,0.00016602,2]
[366441041,1750257046010,-490.0,0.00016602,2]
[366441043,1750257046020,-490.0,0.00016602,2]
[366441045,1750257046030,-1298.39,0.00016602,2]
[366441047,1750257046039,-490.0,0.00016602,2]
[366441049,1750257046050,-2524.38,0.00016602,2]
[366441051,1750257046059,-624.51,0.00016602,2]
[366441053,1750257046069,-490.0,0.00016602,2]
[366441055,1750257046079,-843.28,0.00016602,2]
[366441057,1750257046088,-998.1,0.00016602,2]
[366441060,1750257046098,-1474.63,0.00016602,2]
[366441062,1750257046108,-741.38,0.00016602,2]
[366441064,1750257046118,-490.0,0.00016602,2]
[366441066,1750257046127,-490.0,0.00016602,2]
[366441068,1750257046136,-490.0,0.00016602,2]
[366441070,1750257046146,-793.14,0.00016602,2]
[366441072,1750257046156,-490.0,0.00016602,2]
[366441074,1750257046166,-614.44,0.00016602,2]
[366441076,1750257046175,-490.0,0.00016602,2]
[366441078,1750257046185,-646.95,0.00016602,2]
[366441080,1750257046194,-2116.32,0.00016602,2]
[366441082,1750257046204,-600.42,0.00016602,2]
[366441083,1750257046214,-562.77,0.00016602,2]
[366441085,1750257046226,-490.0,0.00016602,2]
[366441086,1750257046236,-490.0,0.00016602,2]
[366441087,1750257046247,-490.0,0.00016602,2]
[366441088,1750257046257,-1069.11,0.00016602,2]
[366441089,1750257046267,-513.47,0.00016602,2]
[366441090,1750257046280,-490.0,0.00016602,2]
[366441091,1750257046290,-567.01,0.00016602,2]
[366441092,1750257046300,-1198.12,0.00016602,2]
[366441093,1750257046310,-490.0,0.00016602,2]
[366441094,1750257046320,-632.91,0.00016602,2]
[366441095,1750257046330,-1129.76,0.00016602,2]
[366441096,1750257046340,-1414.45,0.00016602,2]
[366441097,1750257046350,-490.0,0.00016602,2]
[366441098,1750257046360,-490.0,0.00016602,2]
[366441099,1750257046370,-490.0,0.00016602,2]
[366441100,1750257046380,-490.0,0.00016602,2]
[366441101,1750257046390,-490.0,0.00016602,2]
[366441102,1750257046402,-8478.731464,0.00016602,2]
[366441103,1750257046413,-200.0,0.00016602,2]
[366441104,1750257046423,-150.0,0.00016602,2]
[366441105,1750257046433,-150.0,0.00016602,2]
[366441106,1750257046446,-500.0,0.00016602,2]
[366441107,1750257046457,-156.54496774,0.00016602,2]
[366441108,1750257046467,-150.98885557,0.00016602,2]
[366441109,1750257046478,-500.0,0.00016629,2]
[366441110,1750257046489,-150.0,0.00016629,2]
[366441111,1750257046506,-150.0,0.00016629,2]
[366441112,1750257046516,-150.0,0.00016629,2]
[366441113,1750257046527,-150.0,0.00016629,2]
[366441114,1750257046538,-150.0,0.00016629,2]
[366441115,1750257046548,-150.0,0.00016629,2]
[366441116,1750257046559,-150.0,0.00016629,2]
[366441117,1750257046570,-500.0,0.00016629,2]
[366441118,1750257046579,-168.0,0.00016643,2]
[366441119,1750257046589,-168.0,0.0001665,2]
[366441120,1750257046603,-7000.0,0.0001665,2]
[366441121,1750257046612,-500.0,0.00016657,2]
[366441122,1750257046622,-200.0,0.00016657,2]
[366441123,1750257046632,-150.0,0.00016657,2]
[366441124,1750257046642,-250.60586234,0.00016657,2]
[366441125,1750257046652,-150.0,0.00016657,2]
[366441126,1750257046662,-253.05246388,0.00016657,2]
[366441127,1750257046672,-150.0,0.00016657,2]
[366441128,1750257046682,-500.0,0.00016657,2]
[366441129,1750257046693,-189.0,0.0001666,2]
[366441130,1750257046702,-500.0,0.00016678,2]
[366441131,1750257046712,-500.0,0.00016684,2]
[366441132,1750257046722,-200.0,0.00016684,2]
[366441133,1750257046732,-150.0,0.00016684,2]
[366441134,1750257046743,-500.0,0.00016684,2]
[366441135,1750257046754,-858.36893487,0.00016689,2]
[366441136,1750257046763,-368.4335177,0.00016694,2]
[366441137,1750257046773,-500.0,0.00016695,2]
[366441138,1750257046784,-500.0,0.00016695,2]
[366441139,1750257046794,-501.09278441,0.00016695,2]
[366441140,1750257046803,-500.0,0.00016695,2]
[366441141,1750257046812,-500.0,0.00016695,2]
[366441142,1750257046822,-500.0,0.00016695,2]
[366441143,1750257046832,-500.0,0.00016695,2]
[366441144,1750257046842,-500.0,0.00016695,2]
[366441145,1750257046852,-500.0,0.00016695,2]
[366441146,1750257046861,-501.44999098,0.00016695,2]
[366441147,1750257046872,-20020.6,0.000167,2]
[366441148,1750257046882,-2200.0,0.000167,6]
[366441149,1750257046893,-151.0,0.00016702,2]
[366441150,1750257046902,-500.0,0.00016712,2]
[366441151,1750257046911,-292.29387625,0.00016712,2]
[366441152,1750257046920,-500.0,0.00016712,2]
[366441153,1750257046930,-187.0,0.00016712,2]
[366441154,1750257046940,-196.89492744,0.00016723,2]
[366441155,1750257046950,-500.0,0.00016739,2]
[366441156,1750257046960,-407.72756873,0.00016739,2]
[366441157,1750257046969,-151.0,0.00016751,2]
[366441158,1750257046979,-992.00738543,0.00016753,2]
[366441159,1750257046989,-500.0,0.00016759,2]
[366441160,1750257047004,-500.0,0.00016759,2]
[366441161,1750257047013,-500.0,0.00016759,2]
[366441162,1750257047023,-1315.98,0.00016766,2]
[366441163,1750257047033,-1315.98,0.00016766,2]
[366441164,1750257047044,-1315.98,0.00016766,2]
[366441165,1750257047054,-1315.98,0.00016766,2]
[366441166,1750257047064,-500.0,0.00016766,2]
[366441167,1750257047074,-500.0,0.00016766,2]
[366441168,1750257047083,-500.0,0.00016766,2]
[366441169,1750257047094,-500.0,0.00016766,2]
[366441170,1750257047103,-300.0,0.00016766,2]
[366441171,1750257047113,-300.0,0.00016766,2]
[366441172,1750257047123,-500.0,0.00016766,2]
[366441173,1750257047134,-33334.87575074,0.00016767,2]
[366441174,1750257047145,-502.03,0.00016767,2]
[366441175,1750257047155,-490.0,0.00016767,2]
[366441176,1750257047165,-686.14,0.00016767,2]
[366441177,1750257047175,-551.49,0.00016767,2]
[366441178,1750257047185,-777.25,0.00016767,2]